[Event "*** Titled Tuesday Blitz"]
[Site "Chess.com"]
[Date "2021.03.30"]
[Round "4"]
[White "InitiatingASC"]
[Black "ChessFunMaker"]
[Result "1-0"]
[WhiteElo "2439"]
[BlackElo "2247"]
[TimeControl "180+1"]
[EndTime "10:39:52 PDT"]
[Termination "InitiatingASC won by checkmate"]

1. d4 {[%clk 0:03:00.9]} 1... Nf6 {[%clk 0:03:00.3]} 2. c4 {[%clk 0:03:00.4]}
2... d6 {[%clk 0:03:00.9]} 3. Nc3 {[%clk 0:02:59.9]} 3... e5 {[%clk 0:03:01.6]}
4. dxe5 {[%clk 0:02:56.4]} 4... dxe5 {[%clk 0:03:02.5]} 5. Qxd8+ {[%clk
0:02:56.6]} 5... Kxd8 {[%clk 0:03:03.4]} 6. e3 {[%clk 0:02:56.7]} 6... Be6
{[%clk 0:03:02.7]} 7. b3 {[%clk 0:02:54.3]} 7... Nbd7 {[%clk 0:02:48.3]} 8. Bd3
{[%clk 0:02:47.7]} 8... c6 {[%clk 0:02:43.1]} 9. Nge2 {[%clk 0:02:47.3]} 9...
Kc7 {[%clk 0:02:35.3]} 10. Bb2 {[%clk 0:02:46]} 10... a5 {[%clk 0:02:26.7]} 11.
O-O {[%clk 0:02:40.8]} 11... Be7 {[%clk 0:02:18.6]} 12. Ng3 {[%clk 0:02:38.1]}
12... g6 {[%clk 0:02:12.1]} 13. Nce4 {[%clk 0:02:28.1]} 13... Nxe4 {[%clk
0:02:07]} 14. Nxe4 {[%clk 0:02:19.2]} 14... f5 {[%clk 0:02:04.8]} 15. Nd2 {[%clk
0:02:09.9]} 15... Rhd8 {[%clk 0:01:45]} 16. Rfd1 {[%clk 0:02:01.6]} 16... Bf6
{[%clk 0:01:14.1]} 17. Be2 {[%clk 0:01:53.7]} 17... e4 {[%clk 0:01:06.8]} 18.
Bd4 {[%clk 0:01:24]} 18... c5 {[%clk 0:00:43.6]} 19. Bxf6 {[%clk 0:01:15.6]}
19... Nxf6 {[%clk 0:00:44.5]} 20. Nb1 {[%clk 0:01:07.3]} 20... Rxd1+ {[%clk
0:00:43.3]} 21. Bxd1 {[%clk 0:01:07.2]} 21... Rd8 {[%clk 0:00:35.2]} 22. Be2
{[%clk 0:01:05.7]} 22... Kc6 {[%clk 0:00:20.5]} 23. Kf1 {[%clk 0:01:05.2]} 23...
Ng4 {[%clk 0:00:20.3]} 24. h3 {[%clk 0:01:04.1]} 24... Ne5 {[%clk 0:00:19.3]}
25. Ke1 {[%clk 0:00:35.6]} 25... g5 {[%clk 0:00:18.1]} 26. Nc3 {[%clk
0:00:33.7]} 26... f4 {[%clk 0:00:16]} 27. Nxe4 {[%clk 0:00:27.2]} 27... h6
{[%clk 0:00:15.3]} 28. Rd1 {[%clk 0:00:25.8]} 28... Rxd1+ {[%clk 0:00:13.3]} 29.
Kxd1 {[%clk 0:00:26.7]} 29... f3 {[%clk 0:00:13.3]} 30. Bf1 {[%clk 0:00:23]}
30... b6 {[%clk 0:00:07.9]} 31. Nc3 {[%clk 0:00:16.2]} 31... Kd7 {[%clk
0:00:05.2]} 32. Nd5 {[%clk 0:00:15.3]} 32... Bxd5 {[%clk 0:00:03.3]} 33. cxd5
{[%clk 0:00:15.5]} 33... Kd6 {[%clk 0:00:03]} 34. gxf3 {[%clk 0:00:14.4]} 34...
Kxd5 {[%clk 0:00:03]} 35. Bg2 {[%clk 0:00:13.6]} 35... Kd6 {[%clk 0:00:02.5]}
36. Kd2 {[%clk 0:00:14.1]} 36... Nc6 {[%clk 0:00:02.2]} 37. a3 {[%clk
0:00:12.7]} 37... Na7 {[%clk 0:00:01.5]} 38. a4 {[%clk 0:00:08.7]} 38... Nc6
{[%clk 0:00:01.9]} 39. Kc3 {[%clk 0:00:08.5]} 39... Ke5 {[%clk 0:00:02.1]} 40.
f4+ {[%clk 0:00:08.3]} 40... Kd6 {[%clk 0:00:01.6]} 41. Bxc6 {[%clk 0:00:08.4]}
41... Kxc6 {[%clk 0:00:02.5]} 42. fxg5 {[%clk 0:00:08.7]} 42... hxg5 {[%clk
0:00:02.6]} 43. Kc4 {[%clk 0:00:09.6]} 43... Kd6 {[%clk 0:00:02.3]} 44. Kb5
{[%clk 0:00:09.9]} 44... Kc7 {[%clk 0:00:02.5]} 45. f4 {[%clk 0:00:08.8]} 45...
gxf4 {[%clk 0:00:03]} 46. exf4 {[%clk 0:00:09.4]} 46... Kb7 {[%clk 0:00:03.6]}
47. f5 {[%clk 0:00:09.3]} 47... Kc7 {[%clk 0:00:04.5]} 48. f6 {[%clk 0:00:09.9]}
48... Kd7 {[%clk 0:00:04.5]} 49. Kxb6 {[%clk 0:00:10]} 49... c4 {[%clk
0:00:05.1]} 50. bxc4 {[%clk 0:00:09.6]} 50... Ke6 {[%clk 0:00:06]} 51. Kxa5
{[%clk 0:00:10]} 51... Kxf6 {[%clk 0:00:06.9]} 52. Kb6 {[%clk 0:00:10.9]} 52...
Ke5 {[%clk 0:00:07.7]} 53. c5 {[%clk 0:00:11.5]} 53... Kd4 {[%clk 0:00:08.6]}
54. c6 {[%clk 0:00:12.4]} 54... Kc4 {[%clk 0:00:09.5]} 55. a5 {[%clk 0:00:12.8]}
55... Kb4 {[%clk 0:00:10.4]} 56. c7 {[%clk 0:00:13.7]} 56... Ka4 {[%clk
0:00:11.1]} 57. c8=Q {[%clk 0:00:14.6]} 57... Kb4 {[%clk 0:00:12]} 58. Qc5+
{[%clk 0:00:14.9]} 58... Ka4 {[%clk 0:00:12.9]} 59. Qb5+ {[%clk 0:00:15.2]}
59... Ka3 {[%clk 0:00:13.3]} 60. a6 {[%clk 0:00:16.1]} 60... Ka2 {[%clk
0:00:13.9]} 61. a7 {[%clk 0:00:17]} 61... Ka1 {[%clk 0:00:14.8]} 62. a8=Q#
{[%clk 0:00:17.9]} 1-0

[Event "*** Titled Tuesday Blitz"]
[Site "Chess.com"]
[Date "2021.03.30"]
[Round "4"]
[White "MergenKakabaev"]
[Black "Chesswizard_2007"]
[Result "0-1"]
[WhiteElo "2365"]
[BlackElo "2696"]
[TimeControl "180+1"]
[EndTime "10:39:54 PDT"]
[Termination "Chesswizard_2007 won on time"]

1. e4 {[%clk 0:03:00.9]} 1... c5 {[%clk 0:02:58.1]} 2. Nf3 {[%clk 0:03:00.8]}
2... Nc6 {[%clk 0:02:58.8]} 3. Bb5 {[%clk 0:02:59.8]} 3... e6 {[%clk 0:02:56.9]}
4. Bxc6 {[%clk 0:02:57.2]} 4... bxc6 {[%clk 0:02:56.2]} 5. d3 {[%clk 0:02:57.3]}
5... Nf6 {[%clk 0:02:55.6]} 6. c4 {[%clk 0:02:57]} 6... d6 {[%clk 0:02:49.4]} 7.
Nc3 {[%clk 0:02:56.5]} 7... e5 {[%clk 0:02:49.3]} 8. h3 {[%clk 0:02:56.7]} 8...
g6 {[%clk 0:02:49]} 9. Bg5 {[%clk 0:02:53.1]} 9... h6 {[%clk 0:02:46]} 10. Bxf6
{[%clk 0:02:51.5]} 10... Qxf6 {[%clk 0:02:46.9]} 11. a3 {[%clk 0:02:46.9]} 11...
Bg7 {[%clk 0:02:45]} 12. b4 {[%clk 0:02:46.3]} 12... O-O {[%clk 0:02:24.9]} 13.
Qe2 {[%clk 0:02:37.3]} 13... Qe7 {[%clk 0:02:18.2]} 14. b5 {[%clk 0:02:30.6]}
14... cxb5 {[%clk 0:02:16.8]} 15. Nxb5 {[%clk 0:02:29.7]} 15... Be6 {[%clk
0:02:08.9]} 16. Nc3 {[%clk 0:02:28.9]} 16... f5 {[%clk 0:02:07.7]} 17. Nd5
{[%clk 0:02:28.1]} 17... Qf7 {[%clk 0:02:05.3]} 18. Rb1 {[%clk 0:02:24.6]} 18...
g5 {[%clk 0:02:01.6]} 19. Nd2 {[%clk 0:02:21.5]} 19... h5 {[%clk 0:01:51.4]} 20.
Nf3 {[%clk 0:02:08.1]} 20... Bh6 {[%clk 0:01:44.8]} 21. h4 {[%clk 0:02:08]}
21... g4 {[%clk 0:01:41]} 22. Ng5 {[%clk 0:02:07.9]} 22... Bxg5 {[%clk
0:01:40.8]} 23. hxg5 {[%clk 0:02:08.8]} 23... Bxd5 {[%clk 0:01:37.1]} 24. cxd5
{[%clk 0:02:05.2]} 24... Rab8 {[%clk 0:01:37.2]} 25. Rb2 {[%clk 0:01:45.6]}
25... Rxb2 {[%clk 0:01:17.1]} 26. Qxb2 {[%clk 0:01:44.6]} 26... fxe4 {[%clk
0:01:17.8]} 27. dxe4 {[%clk 0:01:43.6]} 27... Qf4 {[%clk 0:01:18.4]} 28. Rxh5
{[%clk 0:00:50]} 28... Qxe4+ {[%clk 0:00:57.2]} 29. Qe2 {[%clk 0:00:49.4]} 29...
Qxg2 {[%clk 0:00:50.9]} 30. Rh4 {[%clk 0:00:18.3]} 30... Qg1+ {[%clk 0:00:45.4]}
31. Qf1 {[%clk 0:00:18.1]} 31... Qxf1+ {[%clk 0:00:45.7]} 32. Kxf1 {[%clk
0:00:19]} 32... g3 {[%clk 0:00:46.6]} 33. Rh6 {[%clk 0:00:18.6]} 33... e4 {[%clk
0:00:33.1]} 34. Re6 {[%clk 0:00:13.5]} 34... Rxf2+ {[%clk 0:00:30.1]} 35. Kg1
{[%clk 0:00:13.8]} 35... Rf5 {[%clk 0:00:31]} 36. Rxd6 {[%clk 0:00:12.9]} 36...
Rxg5 {[%clk 0:00:31.2]} 37. Re6 {[%clk 0:00:12.8]} 37... Rxd5 {[%clk 0:00:30.7]}
38. Rxe4 {[%clk 0:00:13]} 38... Rd3 {[%clk 0:00:31]} 39. Rc4 {[%clk 0:00:12.9]}
39... Rxa3 {[%clk 0:00:30.5]} 40. Rxc5 {[%clk 0:00:13.3]} 40... Kf7 {[%clk
0:00:31.1]} 41. Kg2 {[%clk 0:00:13.4]} 41... Ke6 {[%clk 0:00:31.3]} 42. Rc8
{[%clk 0:00:11.8]} 42... a6 {[%clk 0:00:25.9]} 43. Rc7 {[%clk 0:00:11.6]} 43...
a5 {[%clk 0:00:26]} 44. Rc8 {[%clk 0:00:11.7]} 44... a4 {[%clk 0:00:26.3]} 45.
Rc7 {[%clk 0:00:11.9]} 45... Rb3 {[%clk 0:00:25.6]} 46. Rc8 {[%clk 0:00:11.5]}
46... a3 {[%clk 0:00:25.7]} 47. Ra8 {[%clk 0:00:11.2]} 47... Kd5 {[%clk
0:00:24]} 48. Ra7 {[%clk 0:00:10.2]} 48... Kc4 {[%clk 0:00:23]} 49. Re7 {[%clk
0:00:03.9]} 49... Kc3 {[%clk 0:00:19.5]} 50. Kxg3 {[%clk 0:00:03]} 50... a2
{[%clk 0:00:18.4]} 0-1

[Event "*** Titled Tuesday Blitz"]
[Site "Chess.com"]
[Date "2021.03.30"]
[Round "4"]
[White "annamaja"]
[Black "chigorin28"]
[Result "1-0"]
[WhiteElo "2358"]
[BlackElo "2577"]
[TimeControl "180+1"]
[EndTime "10:39:56 PDT"]
[Termination "annamaja won by checkmate"]

1. e4 {[%clk 0:03:00.9]} 1... c5 {[%clk 0:02:58.7]} 2. Nf3 {[%clk 0:03:00.7]}
2... d6 {[%clk 0:02:59.3]} 3. d4 {[%clk 0:03:01]} 3... cxd4 {[%clk 0:02:59.3]}
4. Nxd4 {[%clk 0:03:01.9]} 4... Nf6 {[%clk 0:02:58.9]} 5. Nc3 {[%clk 0:03:02]}
5... a6 {[%clk 0:02:58.2]} 6. Be3 {[%clk 0:02:56]} 6... e5 {[%clk 0:02:57.7]} 7.
Nb3 {[%clk 0:02:54.8]} 7... Be7 {[%clk 0:02:57.8]} 8. Qd2 {[%clk 0:02:52.6]}
8... O-O {[%clk 0:02:57.9]} 9. O-O-O {[%clk 0:02:52.5]} 9... Be6 {[%clk
0:02:51.8]} 10. Kb1 {[%clk 0:02:51.8]} 10... Nbd7 {[%clk 0:02:51.8]} 11. g3
{[%clk 0:02:45.1]} 11... b5 {[%clk 0:02:51.9]} 12. Bg2 {[%clk 0:02:32.8]} 12...
Nb6 {[%clk 0:02:49.3]} 13. Qe2 {[%clk 0:02:03.9]} 13... Nc4 {[%clk 0:02:47.4]}
14. Bc1 {[%clk 0:02:03.5]} 14... a5 {[%clk 0:02:37.7]} 15. Nxb5 {[%clk
0:01:56.1]} 15... a4 {[%clk 0:02:37.5]} 16. Nc5 {[%clk 0:01:56.4]} 16... Rc8
{[%clk 0:02:20.4]} 17. Nxe6 {[%clk 0:01:40.2]} 17... fxe6 {[%clk 0:02:20.7]} 18.
Bh3 {[%clk 0:01:35.3]} 18... Qb6 {[%clk 0:02:17.9]} 19. Bxe6+ {[%clk 0:01:34.2]}
19... Kh8 {[%clk 0:02:06.5]} 20. Bxc4 {[%clk 0:01:30]} 20... Qc5 {[%clk
0:01:50]} 21. b3 {[%clk 0:01:26.8]} 21... axb3 {[%clk 0:01:44.6]} 22. cxb3
{[%clk 0:01:25]} 22... Rb8 {[%clk 0:01:21.7]} 23. Ba3 {[%clk 0:01:10.8]} 23...
Qc6 {[%clk 0:01:04.3]} 24. Bxd6 {[%clk 0:01:08.1]} 24... Bxd6 {[%clk 0:01:01.3]}
25. Rxd6 {[%clk 0:01:07.8]} 25... Qc5 {[%clk 0:00:53.7]} 26. Rhd1 {[%clk
0:01:00.8]} 26... h5 {[%clk 0:00:45.4]} 27. f4 {[%clk 0:00:50.4]} 27... g6
{[%clk 0:00:21.3]} 28. fxe5 {[%clk 0:00:31.6]} 28... Qxe5 {[%clk 0:00:21]} 29.
Qb2 {[%clk 0:00:31.6]} 29... Qxe4+ {[%clk 0:00:20]} 30. Ka1 {[%clk 0:00:30.1]}
30... Kg7 {[%clk 0:00:13.8]} 31. Rf1 {[%clk 0:00:24.9]} 31... Qe7 {[%clk
0:00:13.5]} 32. Re6 {[%clk 0:00:23.8]} 32... Qd8 {[%clk 0:00:12.4]} 33. Nd6
{[%clk 0:00:20.7]} 33... Rb6 {[%clk 0:00:09.3]} 34. Ne4 {[%clk 0:00:15]} 34...
Rxe6 {[%clk 0:00:07.4]} 35. Bxe6 {[%clk 0:00:15.9]} 35... Qe7 {[%clk 0:00:03.9]}
36. Rxf6 {[%clk 0:00:11.1]} 36... Kh7 {[%clk 0:00:03.5]} 37. Rxf8 {[%clk
0:00:08.8]} 37... Qxf8 {[%clk 0:00:04]} 38. Nf6+ {[%clk 0:00:08.1]} 38... Kh6
{[%clk 0:00:02.9]} 39. Qd2+ {[%clk 0:00:06.8]} 39... Kg7 {[%clk 0:00:03.2]} 40.
Nd5 {[%clk 0:00:06.2]} 40... Qf1+ {[%clk 0:00:02.6]} 41. Kb2 {[%clk 0:00:06.4]}
41... Qf3 {[%clk 0:00:01.6]} 42. Qd4+ {[%clk 0:00:06.5]} 42... Kh6 {[%clk
0:00:02]} 43. Qe3+ {[%clk 0:00:06.8]} 43... Qxe3 {[%clk 0:00:02.2]} 44. Nxe3
{[%clk 0:00:07.7]} 44... Kg5 {[%clk 0:00:02.6]} 45. Bc4 {[%clk 0:00:08]} 45...
Kf6 {[%clk 0:00:03.5]} 46. a4 {[%clk 0:00:08.6]} 46... Ke5 {[%clk 0:00:03.5]}
47. a5 {[%clk 0:00:09.5]} 47... Ke4 {[%clk 0:00:04.4]} 48. Nd5 {[%clk
0:00:10.2]} 48... Kf3 {[%clk 0:00:03.6]} 49. a6 {[%clk 0:00:10.4]} 49... Kg2
{[%clk 0:00:04.5]} 50. a7 {[%clk 0:00:11.1]} 50... Kxh2 {[%clk 0:00:05.3]} 51.
a8=Q {[%clk 0:00:11.5]} 51... Kxg3 {[%clk 0:00:06.2]} 52. Qg8 {[%clk 0:00:11.4]}
52... h4 {[%clk 0:00:06]} 53. Qxg6+ {[%clk 0:00:11.6]} 53... Kh2 {[%clk
0:00:06.9]} 54. Nf4 {[%clk 0:00:11.1]} 54... h3 {[%clk 0:00:07.8]} 55. Qg4
{[%clk 0:00:09.5]} 55... Kh1 {[%clk 0:00:07.5]} 56. Qxh3+ {[%clk 0:00:10.1]}
56... Kg1 {[%clk 0:00:08.1]} 57. Qg2# {[%clk 0:00:11]} 1-0

[Event "*** Titled Tuesday Blitz"]
[Site "Chess.com"]
[Date "2021.03.30"]
[Round "4"]
[White "Mili_Brizzi"]
[Black "chegueps"]
[Result "0-1"]
[WhiteElo "2279"]
[BlackElo "2467"]
[TimeControl "180+1"]
[EndTime "10:39:56 PDT"]
[Termination "chegueps won on time"]

1. e4 {[%clk 0:03:00.9]} 1... e6 {[%clk 0:02:55.1]} 2. d3 {[%clk 0:02:58.1]}
2... e5 {[%clk 0:02:50]} 3. Nf3 {[%clk 0:02:56.8]} 3... Nc6 {[%clk 0:02:48.7]}
4. d4 {[%clk 0:02:54.4]} 4... exd4 {[%clk 0:02:49.6]} 5. Nxd4 {[%clk 0:02:54.3]}
5... Nf6 {[%clk 0:02:49.5]} 6. Nxc6 {[%clk 0:02:53.4]} 6... bxc6 {[%clk
0:02:50.4]} 7. e5 {[%clk 0:02:53.2]} 7... Qe7 {[%clk 0:02:50.9]} 8. Qe2 {[%clk
0:02:53.2]} 8... Nd5 {[%clk 0:02:51.5]} 9. c4 {[%clk 0:02:53.6]} 9... Ba6 {[%clk
0:02:48.2]} 10. Nd2 {[%clk 0:02:52.1]} 10... Nb6 {[%clk 0:02:40.3]} 11. Qe4
{[%clk 0:02:47]} 11... O-O-O {[%clk 0:02:37.9]} 12. b3 {[%clk 0:02:33]} 12... d6
{[%clk 0:02:31.3]} 13. Bb2 {[%clk 0:02:16]} 13... Re8 {[%clk 0:02:25.3]} 14. f4
{[%clk 0:02:01]} 14... f6 {[%clk 0:02:03.9]} 15. O-O-O {[%clk 0:01:53.3]} 15...
fxe5 {[%clk 0:01:48.6]} 16. fxe5 {[%clk 0:01:52.8]} 16... dxe5 {[%clk
0:01:33.8]} 17. g3 {[%clk 0:01:43.6]} 17... Bb7 {[%clk 0:01:31.1]} 18. Bg2
{[%clk 0:01:43.5]} 18... Ba8 {[%clk 0:01:25.3]} 19. Rhe1 {[%clk 0:01:31.9]}
19... a5 {[%clk 0:01:21.2]} 20. Qf5+ {[%clk 0:01:23.6]} 20... Qd7 {[%clk
0:01:16.8]} 21. Rxe5 {[%clk 0:01:01.4]} 21... Bd6 {[%clk 0:00:51.8]} 22. Rxe8+
{[%clk 0:00:44]} 22... Rxe8 {[%clk 0:00:48.5]} 23. Bh3 {[%clk 0:00:19.4]} 23...
Qxf5 {[%clk 0:00:40.2]} 24. Bxf5+ {[%clk 0:00:19.3]} 24... Kb8 {[%clk
0:00:40.4]} 25. Ne4 {[%clk 0:00:18.6]} 25... Be5 {[%clk 0:00:35.3]} 26. Nc5
{[%clk 0:00:18.3]} 26... Bxb2+ {[%clk 0:00:33.2]} 27. Kxb2 {[%clk 0:00:18.9]}
27... Re2+ {[%clk 0:00:27.8]} 28. Ka3 {[%clk 0:00:19.1]} 28... Rxh2 {[%clk
0:00:22]} 29. Rd8+ {[%clk 0:00:18.6]} 29... Ka7 {[%clk 0:00:21.4]} 30. Rg8
{[%clk 0:00:18.4]} 30... g6 {[%clk 0:00:21.1]} 31. Be4 {[%clk 0:00:16.9]} 31...
Rh3 {[%clk 0:00:17.6]} 32. Rg7 {[%clk 0:00:16.5]} 32... Kb8 {[%clk 0:00:14.5]}
33. Rg8+ {[%clk 0:00:15.6]} 33... Ka7 {[%clk 0:00:13.1]} 34. Rg7 {[%clk
0:00:16]} 34... Kb8 {[%clk 0:00:07.1]} 35. Na6+ {[%clk 0:00:16.2]} 35... Kb7
{[%clk 0:00:05.9]} 36. Nxc7 {[%clk 0:00:15.6]} 36... Rxg3 {[%clk 0:00:04.4]} 37.
Ne6+ {[%clk 0:00:13.3]} 37... Kc8 {[%clk 0:00:02.6]} 38. Nc5 {[%clk 0:00:12.2]}
38... Nxc4+ {[%clk 0:00:02.3]} 39. Ka4 {[%clk 0:00:09.4]} 39... Nd6 {[%clk
0:00:01.8]} 40. Rg8+ {[%clk 0:00:06.8]} 40... Kc7 {[%clk 0:00:02.1]} 41. Rg7+
{[%clk 0:00:06.8]} 41... Kb6 {[%clk 0:00:02.1]} 42. Nd7+ {[%clk 0:00:06.3]}
42... Ka6 {[%clk 0:00:02.5]} 43. Nb8+ {[%clk 0:00:04.4]} 43... Kb6 {[%clk
0:00:02.7]} 44. Nd7+ {[%clk 0:00:04.2]} 44... Kc7 {[%clk 0:00:02.6]} 45. Nc5+
{[%clk 0:00:03.7]} 45... Kd8 {[%clk 0:00:02.8]} 46. Ne6+ {[%clk 0:00:03.6]}
46... Ke8 {[%clk 0:00:02.9]} 47. Nc7+ {[%clk 0:00:02.5]} 47... Kf8 {[%clk
0:00:03.2]} 0-1

[Event "*** Titled Tuesday Blitz"]
[Site "Chess.com"]
[Date "2021.03.30"]
[Round "4"]
[White "MaxLeto"]
[Black "vovachesss"]
[Result "0-1"]
[WhiteElo "2356"]
[BlackElo "2652"]
[TimeControl "180+1"]
[EndTime "10:39:57 PDT"]
[Termination "vovachesss won by resignation"]

1. g4 {[%clk 0:03:00.9]} 1... e5 {[%clk 0:02:58.4]} 2. Bg2 {[%clk 0:03:01.1]}
2... Ke7 {[%clk 0:02:58.9]} 3. Nc3 {[%clk 0:02:57.9]} 3... c6 {[%clk 0:02:59]}
4. Nf3 {[%clk 0:02:56.7]} 4... d6 {[%clk 0:02:59]} 5. g5 {[%clk 0:02:50.4]} 5...
Be6 {[%clk 0:02:57]} 6. d4 {[%clk 0:02:49.8]} 6... Qc7 {[%clk 0:02:56.1]} 7. e4
{[%clk 0:02:42.4]} 7... Ke8 {[%clk 0:02:49.8]} 8. Be3 {[%clk 0:02:41.5]} 8...
Ne7 {[%clk 0:02:49.6]} 9. Qd2 {[%clk 0:02:39.3]} 9... Nd7 {[%clk 0:02:41.8]} 10.
O-O-O {[%clk 0:01:55.1]} 10... Nb6 {[%clk 0:02:41.1]} 11. b3 {[%clk 0:01:54.5]}
11... Ng6 {[%clk 0:02:37.3]} 12. h4 {[%clk 0:01:44.9]} 12... Be7 {[%clk
0:02:34]} 13. h5 {[%clk 0:01:43.9]} 13... Nf8 {[%clk 0:02:34.5]} 14. d5 {[%clk
0:01:35.2]} 14... cxd5 {[%clk 0:02:23.4]} 15. exd5 {[%clk 0:01:32]} 15... Bg4
{[%clk 0:01:42.8]} 16. Rh4 {[%clk 0:01:30.3]} 16... Bf5 {[%clk 0:01:37.6]} 17.
Kb2 {[%clk 0:01:06.9]} 17... Nfd7 {[%clk 0:01:32.8]} 18. a4 {[%clk 0:00:56.9]}
18... Nc5 {[%clk 0:01:30.2]} 19. Nxe5 {[%clk 0:00:38.2]} 19... Rc8 {[%clk
0:00:28.6]} 20. Nc4 {[%clk 0:00:23.8]} 20... Kf8 {[%clk 0:00:14.6]} 21. Nb5
{[%clk 0:00:13]} 21... Ncxa4+ {[%clk 0:00:09]} 22. bxa4 {[%clk 0:00:13.1]} 22...
Nxc4+ {[%clk 0:00:09]} 23. Rxc4 {[%clk 0:00:10.3]} 23... Qxc4 {[%clk 0:00:09.2]}
24. Qc3 {[%clk 0:00:05.6]} 24... Qxc3+ {[%clk 0:00:05.2]} 25. Nxc3 {[%clk
0:00:05.5]} 25... h6 {[%clk 0:00:06.1]} 26. gxh6 {[%clk 0:00:05.3]} 26... Bf6
{[%clk 0:00:06.2]} 27. Bd4 {[%clk 0:00:05.1]} 27... Bxd4 {[%clk 0:00:05.9]} 28.
Rxd4 {[%clk 0:00:06]} 28... Rxh6 {[%clk 0:00:06.4]} 29. Bf3 {[%clk 0:00:06.2]}
29... g6 {[%clk 0:00:06.1]} 30. hxg6 {[%clk 0:00:05.9]} 30... Bxg6 {[%clk
0:00:07]} 31. Kb3 {[%clk 0:00:06.2]} 31... Rh2 {[%clk 0:00:07.1]} 32. Rd2 {[%clk
0:00:06.4]} 32... Kg7 {[%clk 0:00:05.9]} 33. Bg4 {[%clk 0:00:06.7]} 33... Re8
{[%clk 0:00:05.6]} 34. Nb5 {[%clk 0:00:07]} 34... Re4 {[%clk 0:00:03.4]} 35. f3
{[%clk 0:00:06.3]} 35... Re3+ {[%clk 0:00:03.4]} 36. Rd3 {[%clk 0:00:06.1]}
36... Bxd3 {[%clk 0:00:04]} 37. cxd3 {[%clk 0:00:07]} 37... Rxd3+ {[%clk
0:00:04.8]} 38. Kc4 {[%clk 0:00:07.5]} 38... Rdd2 {[%clk 0:00:03.9]} 39. Nxd6
{[%clk 0:00:07.9]} 39... Ra2 {[%clk 0:00:04.6]} 40. Nf5+ {[%clk 0:00:08]} 40...
Kf6 {[%clk 0:00:04.5]} 41. d6 {[%clk 0:00:08.9]} 41... Rhd2 {[%clk 0:00:04]} 42.
Kc3 {[%clk 0:00:07.1]} 42... Rd1 {[%clk 0:00:03.7]} 43. Ng3 {[%clk 0:00:06.9]}
43... Rxd6 {[%clk 0:00:02.6]} 44. Ne4+ {[%clk 0:00:07.1]} 44... Ke5 {[%clk
0:00:03.5]} 45. Kb3 {[%clk 0:00:07.1]} 45... Re2 {[%clk 0:00:03.3]} 46. f4+
{[%clk 0:00:04.2]} 46... Kxe4 {[%clk 0:00:03.7]} 47. Bxe2 {[%clk 0:00:04.6]}
47... Kxf4 {[%clk 0:00:04.6]} 48. Bc4 {[%clk 0:00:05.1]} 48... f5 {[%clk
0:00:05.2]} 49. Kb4 {[%clk 0:00:05.2]} 49... Ke3 {[%clk 0:00:05.8]} 50. Kc5
{[%clk 0:00:06.1]} 50... Rf6 {[%clk 0:00:06.2]} 51. a5 {[%clk 0:00:06.7]} 51...
f4 {[%clk 0:00:06.7]} 52. a6 {[%clk 0:00:07.1]} 52... bxa6 {[%clk 0:00:07.6]}
0-1

[Event "*** Titled Tuesday Blitz"]
[Site "Chess.com"]
[Date "2021.03.30"]
[Round "4"]
[White "Rozhkov_V"]
[Black "Zmof"]
[Result "1-0"]
[WhiteElo "2358"]
[BlackElo "2204"]
[TimeControl "180+1"]
[EndTime "10:39:57 PDT"]
[Termination "Rozhkov_V won on time"]

1. e4 {[%clk 0:00:11.3]} 1... c5 {[%clk 0:02:56.1]} 2. Nf3 {[%clk 0:00:11.2]}
2... Nc6 {[%clk 0:02:55.7]} 3. d4 {[%clk 0:00:11.7]} 3... cxd4 {[%clk 0:02:56]}
4. Nxd4 {[%clk 0:00:12.4]} 4... Qb6 {[%clk 0:02:56.7]} 5. Nb3 {[%clk 0:00:12]}
5... Nf6 {[%clk 0:02:57]} 6. Nc3 {[%clk 0:00:12.5]} 6... e6 {[%clk 0:02:57.5]}
7. Be3 {[%clk 0:00:13.1]} 7... Qc7 {[%clk 0:02:57.8]} 8. g3 {[%clk 0:00:13]}
8... a6 {[%clk 0:02:56.2]} 9. Bg2 {[%clk 0:00:13.5]} 9... d6 {[%clk 0:02:56.6]}
10. O-O {[%clk 0:00:13.8]} 10... Be7 {[%clk 0:02:55.7]} 11. a4 {[%clk
0:00:13.1]} 11... b6 {[%clk 0:02:55]} 12. g4 {[%clk 0:00:13.3]} 12... O-O {[%clk
0:02:53.5]} 13. g5 {[%clk 0:00:13.5]} 13... Nd7 {[%clk 0:02:53.9]} 14. f4 {[%clk
0:00:14.1]} 14... Bb7 {[%clk 0:02:53.1]} 15. Rf3 {[%clk 0:00:14.6]} 15... Rfe8
{[%clk 0:02:48.7]} 16. Rh3 {[%clk 0:00:15.2]} 16... Nb4 {[%clk 0:02:30.9]} 17.
Qe2 {[%clk 0:00:13.7]} 17... g6 {[%clk 0:01:55.2]} 18. Rd1 {[%clk 0:00:13.4]}
18... Bf8 {[%clk 0:01:52.7]} 19. Qf2 {[%clk 0:00:13.6]} 19... Bg7 {[%clk
0:01:51.7]} 20. Bd4 {[%clk 0:00:13.7]} 20... e5 {[%clk 0:01:51.3]} 21. fxe5
{[%clk 0:00:11.8]} 21... dxe5 {[%clk 0:01:51]} 22. Be3 {[%clk 0:00:11]} 22...
Nf8 {[%clk 0:01:47.5]} 23. Nd5 {[%clk 0:00:11]} 23... Nxd5 {[%clk 0:01:46.1]}
24. exd5 {[%clk 0:00:11.6]} 24... b5 {[%clk 0:01:30.6]} 25. a5 {[%clk
0:00:09.4]} 25... Rac8 {[%clk 0:01:27.4]} 26. c3 {[%clk 0:00:08.6]} 26... Qd7
{[%clk 0:01:26.4]} 27. Nc5 {[%clk 0:00:08.1]} 27... Rxc5 {[%clk 0:01:10.5]} 28.
Bxc5 {[%clk 0:00:07.7]} 28... Qg4 {[%clk 0:01:11.2]} 29. Rf1 {[%clk 0:00:07.4]}
29... Qd7 {[%clk 0:01:01.2]} 30. Bxf8 {[%clk 0:00:04.9]} 30... Bxf8 {[%clk
0:00:57]} 31. Qh4 {[%clk 0:00:05]} 31... h5 {[%clk 0:00:57.6]} 32. gxh6 {[%clk
0:00:05.1]} 32... Kh7 {[%clk 0:00:58.2]} 33. Qf6 {[%clk 0:00:04.8]} 33... Bxd5
{[%clk 0:00:14.9]} 34. Rd3 {[%clk 0:00:04.3]} 34... Qa7+ {[%clk 0:00:06.4]} 35.
Kh1 {[%clk 0:00:04]} 35... Be6 {[%clk 0:00:06.6]} 36. Rdf3 {[%clk 0:00:02.9]}
36... Bxh6 {[%clk 0:00:06.6]} 37. Bh3 {[%clk 0:00:03]} 37... Qe7 {[%clk
0:00:02.3]} 38. Bxe6 {[%clk 0:00:02.7]} 38... Qxf6 {[%clk 0:00:02.4]} 39. Rxf6
{[%clk 0:00:03.4]} 39... fxe6 {[%clk 0:00:01.8]} 40. Rf7+ {[%clk 0:00:03.7]}
40... Bg7 {[%clk 0:00:02.5]} 41. Rb7 {[%clk 0:00:04.1]} 41... Rd8 {[%clk
0:00:02.8]} 42. Rff7 {[%clk 0:00:04.7]} 42... Rd2 {[%clk 0:00:03.3]} 43. Rxg7+
{[%clk 0:00:04.3]} 43... Kh6 {[%clk 0:00:03.9]} 44. Rgd7 {[%clk 0:00:05]} 44...
Kg5 {[%clk 0:00:04.4]} 45. Rxd2 {[%clk 0:00:05.4]} 45... e4 {[%clk 0:00:03.3]}
46. Rg2+ {[%clk 0:00:06]} 46... Kf4 {[%clk 0:00:03.3]} 47. Rf7+ {[%clk
0:00:06.5]} 47... Ke3 {[%clk 0:00:03.4]} 48. Rxg6 {[%clk 0:00:07.3]} 48... Kd3
{[%clk 0:00:02.6]} 49. Rxe6 {[%clk 0:00:07.6]} 49... e3 {[%clk 0:00:02.8]} 50.
Rd7+ {[%clk 0:00:08.3]} 1-0